Cogmind - Beta 13 X1 @@@ ROGUE MODE // 2023.07.14 @ 17:48:40 Player: Minty Result: Destroyed by as-98642 with Assembled Heavy Rifle Performance ------------- Evolutions (0) 0 Regions Visited (2) 400 Robots Destroyed (28) 140 Value Destroyed (613) 613 Prototype IDs (0) 0 Alien Tech Used (0) 0 Bonus (0) 0 TOTAL SCORE: 1153 Bonus ------- None Cogmind --------- Core Integrity 0/250 Matter 204/300 Energy 100/100 System Corruption 0% Temperature Cool (0) Movement Hovering (80) Location -10/Mines Parts ------- > --- POWER (1) -------- (None) > --- PROPULSION (2) --- Combat Airjet > --- UTILITY (2) ------ Small Storage Unit Targeting Computer > --- WEAPON (2) ------- Shotgun > --- INVENTORY (8) ---- Aluminum Leg Aluminum Leg Improved Heat Sink Targeting Computer Targeting Computer EM Shotgun EM Shotgun Shotgun Peak State ------------ > --- POWER ------------ Light Ion Engine > --- PROPULSION ------- Combat Airjet > --- UTILITY ---------- Small Storage Unit Targeting Computer > --- WEAPON ----------- Shotgun Shotgun > --- INVENTORY -------- Aluminum Leg Aluminum Leg Improved Heat Sink Targeting Computer Targeting Computer EM Shotgun EM Shotgun [Rating: 13] Favorites ----------- Power Light Ion Engine Engine Light Ion Engine Propulsion Aluminum Leg Leg Aluminum Leg Hover Unit Combat Airjet Utility Small Storage Unit Storage Small Storage Unit Processor Targeting Computer Weapon Shotgun Energy Gun EM Shotgun Ballistic Gun Shotgun Build | -11 -10 -10 ------- Run | Jun Mat Min Slots Evolved . | . . . Power . | . . . Propulsion . | . . . Utility . | . . . Weapon . | . . . Parts Attached 19 | . 9 10 Power 3 | . 2 1 Engine 3 | . 2 1 Core . | . . . Reactor . | . . . Propulsion 6 | . 2 4 Treads . | . . . Leg 5 | . 2 3 Wheel . | . . . Hover 1 | . . 1 Flight . | . . . Utility 1 | . 1 . Device . | . . . Storage . | . . . Processor 1 | . 1 . Hackware . | . . . Protection . | . . . Artifact . | . . . Weapon 9 | . 4 5 Energy Gun 2 | . . 2 Energy Cannon . | . . . Ballistic Gun 7 | . 4 3 Ballistic Cannon . | . . . Launcher . | . . . Special Weapon . | . . . Impact Weapon . | . . . Slashing Weapon . | . . . Piercing Weapon . | . . . Special Melee Weapon . | . . . Unidentified Prototypes . | . . . Parts Lost 4 | . . 4 Power 2 | . . 2 Propulsion 1 | . . 1 Utility . | . . . Weapon 1 | . . 1 Highest Loss Streak 4 | . . 4 To Critical Strikes . | . . . Average Slot Usage (%) 96 | . 97 96 Engine 13 | . 14 13 Leg 26 | . 28 25 Storage 14 | . 14 14 Processor 12 | . 11 14 Energy Gun 10 | . 3 16 Ballistic Gun 16 | . 24 9 Naked Turns . | . . . Heaviest Build 14 | 11 14 14 Greatest Support 20 | 20 20 20 Greatest Overweight (x) . | . . . Average Overweight (x) . | . . . Largest Inventory Capacity 8 | . 8 8 Average Capacity 8 | . 8 8 Most Carried 8 | . 8 8 Average Carried 7 | . 7 7 Final Capacity 8 | 8 8 8 Final Carried 8 | 6 8 8 Class Distribution -------------------- 100% | Mutant Dominant Class ---------------- Mutant | -10/Materials Mutant | -10/Mines Resources | -11 -10 -10 ----------- Run | Jun Mat Min Matter Collected 575 | 200 188 187 Remotely . | . . . Salvage Created 750 | . 365 385 Parts 54 | . 28 26 Haulers Intercepted . | . . . Recyclers Shooed . | . . . Parts Field Recycled . | . . . Retrieved Matter . | . . . Parts Self-Destructed . | . . . Prevented . | . . . Kills | -11 -10 -10 ------- Run | Jun Mat Min Combat Hostiles Destroyed 18 | . 11 7 Guns 18 | . 11 7 Classes Destroyed 7 | . 4 3 Worker 3 | . 1 2 Tunneler 3 | . . 3 Recycler 2 | . . 2 Watcher 2 | . 2 . Swarmer 6 | . 3 3 Grunt 10 | . 8 2 Demolisher 2 | . . 2 Best Kill Streak 5 | . 4 5 Combat Bots Only 4 | . 4 3 Max Kills in Single Turn 2 | . 1 2 Gunslinging 1 | . . 1 Exploded . | . . . Melee . | . . . Uniques/NPCs Destroyed . | . . . Combat | -11 -10 -10 -------- Run | Jun Mat Min Damage Taken 1081 | . 387 694 Core 255 | . 66 189 Absorbed by Shields . | . . . Regen/Repaired (Parts) 107 | . 107 . Core Remaining (%) 100 | 100 . . Volleys Fired 62 | . 25 37 Largest 2 | . 2 2 Hottest 90 | . 60 90 Shots Fired 118 | . 49 69 Gun 118 | . 49 69 Cannon . | . . . Launcher . | . . . Special . | . . . Kinetic 76 | . 47 29 Thermal 2 | . 2 . Explosive . | . . . Electromagnetic 40 | . . 40 Robot Hit Streak 9 | . 6 9 Robot Miss Streak 6 | . 3 6 Penetration Max . | . . . Secondary Targets 3 | . 2 1 Max Gunslinging Chain 1 | . 1 1 Shots Hit Robots 79 | . 34 45 Core Hits 56 | . 27 29 Critical Kills 1 | . 1 . Critical Parts Destroyed . | . . . Critical Strikes 1 | . 1 . Destroy 1 | . 1 . Melee Attacks . | . . . Impact . | . . . Slashing . | . . . Piercing . | . . . Sneak Attacks . | . . . Combat Hostiles . | . . . Follow-up Attacks . | . . . Damage Inflicted 1146 | . 463 683 Guns 1097 | . 463 634 Cannons . | . . . Explosions 43 | . . 43 Melee . | . . . Ramming 6 | . . 6 Kinetic 782 | . 452 330 Thermal 54 | . 11 43 Explosive . | . . . Electromagnetic 304 | . . 304 Impact . | . . . Slashing . | . . . Piercing . | . . . Highest Corruption . | . . . Average Corruption . | . . . Corruption Purged . | . . . Corruption Blocked . | . . . Overload Shots . | . . . Overflow Damage 24 | . . 24 Projectiles . | . . . Explosions 24 | . . 24 Melee . | . . . Knockbacks . | . . . Impact . | . . . Kinetic . | . . . Secondary . | . . . Self-Inflicted Damage 37 | . . 37 Shots 1 | . . 1 Rammed . | . . . Targets Rammed 1 | . . 1 Kicked 1 | . . 1 Crushed . | . . . Highest Temperature 180 | . 39 180 Average Temperature 43 | . 9 51 Received Heat Transfer 207 | . 180 27 Siege Activations . | . . . Robots Corrupted . | . . . Combat Hostiles . | . . . Parts Fried . | . . . Impact Corruptions . | . . . Robots Melted . | . . . Combat Hostiles . | . . . Parts Melted . | . . . Heat Transferred 75 | . 25 50 Parts Sabotaged . | . . . Parts Stolen . | . . . Parts Stripped . | . . . Power Chain Reactions 1 | . . 1 Missiles Intercepted . | . . . Alert | -11 -10 -10 ------- Run | Jun Mat Min Peak Influence 322 | . 295 322 Initial 114 | . . 114 Average 184 | . 148 220 Maximum Alert Level 1 | . 1 1 Low Security (%) 59 | . 62 56 Level 1 40 | . 37 43 Level 2 . | . . . Level 3 . | . . . Level 4 . | . . . Level 5 . | . . . High Security . | . . . Max Security . | . . . Squads Dispatched 1 | . 1 . Investigation 1 | . 1 . Extermination . | . . . Reinforcement . | . . . Assault . | . . . Garrison . | . . . Intercept . | . . . Searches Triggered . | . . . Construction Impeded . | . . . Haulers Reinforced . | . . . Active Scanning Responses . | . . . Cargo Convoy Interrupts . | . . . Stealth | -11 -10 -10 --------- Run | Jun Mat Min Distress Signals 3 | . 3 . Communications Jammed . | . . . Distress Signals . | . . . Times Spotted 39 | . 14 25 Peak Tracking Total 12 | . 6 12 Tactical Retreats 2 | . . 2 Traps | -11 -10 -10 ------- Run | Jun Mat Min Traps Triggered . | . . . Indirectly . | . . . Trap Hack Attempts . | . . . Triggered . | . . . Disarmed 6 | . 6 . Reprogrammed 4 | . 4 . Reused 1 | . 1 . Traps Extracted . | . . . Installed . | . . . Triggered 1 | . 1 . Machines | -11 -10 -10 ---------- Run | Jun Mat Min Machines Disabled . | . . . Max in Single Turn . | . . . Machines Repaired . | . . . Machines Sabotaged . | . . . Overloaded Fab Kills . | . . . Hacking | -11 -10 -10 --------- Run | Jun Mat Min Machines Accessed 3 | . 3 . Terminals 2 | . 2 . Fabricators . | . . . Repair Stations 1 | . 1 . Recycling Units . | . . . Scanalyzers . | . . . Garrison Access . | . . . Total Hacks 14 | . 14 . Successful 9 | . 9 . Failed 5 | . 5 . Catastrophic . | . . . Database Lockouts . | . . . Manual 9 | . 9 . Terminals 10 | . 10 . Fabricators . | . . . Repair Stations 4 | . 4 . Recycling Units . | . . . Scanalyzers . | . . . Garrison Access . | . . . Terminal Hacks 3 | . 3 . Locate Traps 1 | . 1 . Disarm Traps 1 | . 1 . Reprogram Traps 1 | . 1 . Fabricator Hacks . | . . . Repair Station Hacks 4 | . 4 . Scan Component 2 | . 2 . Repair 2 | . 2 . Recycling Unit Hacks . | . . . Scanalyzer . | . . . Garrison Access Hacks . | . . . Unauthorized Hacks 2 | . 2 . Terminals 2 | . 2 . Botnet 2 | . 2 . Fabricators . | . . . Repair Stations . | . . . Recycling Units . | . . . Scanalyzers . | . . . Garrison Access . | . . . Data Cores Recovered . | . . . Used . | . . . Hacking Detections 2 | . 2 . Full Trace Events . | . . . Feedback Events . | . . . Feedback Blocked . | . . . Robot Schematics Acquired . | . . . Robots Built . | . . . Authchips . | . . . Time . | . . . Total Robot Build Rating . | . . . Part Schematics Acquired . | . . . Parts Built . | . . . Authchips . | . . . Time . | . . . Total Part Build Rating . | . . . Parts Repaired 2 | . 2 . Time 58 | . 58 . Parts Recycled . | . . . Recycled Matter . | . . . Retrieved Matter . | . . . Retrieved Components . | . . . Parts Scanalyzed . | . . . Part Schematics Acquired . | . . . Parts Damaged . | . . . Bothacking | -11 -10 -10 ------------ Run | Jun Mat Min Used RIF Installer . | . . . Robots Hacked . | . . . Non-combat . | . . . Combat . | . . . Robot Hacks Applied . | . . . Relay Couplers Released . | . . . Fabnet Peak Effective % . | . . . Robots Rewired . | . . . Allies Hacked . | . . . Hacks Repelled . | . . . Allies | -11 -10 -10 -------- Run | Jun Mat Min Total Allies . | . . . Largest Group . | . . . Highest-Rated Group . | . . . Highest-Rated Ally . | . . . Total Orders . | . . . Ally Attacks . | . . . Total Damage . | . . . Kills . | . . . Allies Corrupted . | . . . Allies Melted . | . . . Intel | -11 -10 -10 ------- Run | Jun Mat Min Robot Analysis Total . | . . . Derelict Logs Recovered . | . . . Drone Launches . | . . . Drone Recoveries . | . . . Exploration | -11 -10 -10 ------------- Run | Jun Mat Min Turns Passed 659 | . 329 330 Spaces Moved 322 | 1 146 175 Core . | . . . Treads . | . . . Legs 314 | 1 146 167 Wheels . | . . . Hover 8 | . . 8 Flight . | . . . Fastest Speed 80 | 120 120 80 Average Speed 119 | 120 120 118 Slowest Speed 120 | 120 120 120 Overloaded Moves . | . . . Propulsion Burnouts . | . . . Robots Hopped . | . . . Cave-ins Triggered . | . . . Exploration Rate (%) 24 | 2 34 37 Regions Visited 2 Branch Regions 1 Pre-discovered Areas . | . . . Known Exits Taken . | . . . Unknown Exits Taken 2 | 1 1 . Scrap Searched . | . . . Spaces Dug . | . . . Terrain Destroyed 3 | . . 3 Melee . | . . . Projectile . | . . . AOE 3 | . . 3 Terrain Rammed . | . . . Walls Destroyed . | . . . Machines Disabled . | . . . Actions | -11 -10 -10 --------- Run | Jun Mat Min Total 482 | . 253 229 Wait 56 | . 56 . Move 320 | . 145 175 Hop . | . . . Pick Up 10 | . 9 1 Fast Attach 2 | . 1 1 Attach 3 | . . 3 Detach 3 | . . 3 Swap 14 | . 8 6 Drop 11 | . 9 2 Fire 62 | . 25 37 Melee . | . . . Ram . | . . . Kick 1 | . . 1 Crush . | . . . Escape Stasis . | . . . Rewire . | . . . Trap . | . . . Miscellaneous . | . . . Route ------- -11/Junkyard -10/Materials -10/Mines History --------- Turn | Location | Event 1 | -11/Junkyard | Discovered new exit (range 0) 1 | -11/Junkyard | Entered Materials 231 | -10/Materials | Discovered new exit (range 13) 275 | -10/Materials | Repaired Shotgun 303 | -10/Materials | Repaired Lgt. Ion Engine 324 | -10/Materials | Build established: Mutant 330 | -10/Materials | Entered Mines 590 | -10/Mines | Assembled infested the area 621 | -10/Mines | Core integrity fell below 50% 633 | -10/Mines | Core integrity fell below 20% 660 | -10/Mines | Destroyed by as-98642 with Assembled Heavy Rifle Last Messages --------------- 00635_ K-01 Serf collects debris. 00638_ U-05 Engineer lays Concrete. 00638_ K-01 Serf collects debris. 00639_ U-05 Engineer lays Concrete. 00640_ Acquired Cmb. Airjet. 00640_ U-05 Engineer lays Concrete. 00641_ K-01 Serf collects debris. 00642_ U-05 Engineer builds a Wall. 00645_ K-01 Serf collects debris. 00646_ U-05 Engineer lays Concrete. 00648_ The unstable cave ceiling collapses. 00650_ K-01 Serf collects debris. 00651_ R-06 Scavenger collects Aluminum Leg. 00653_ K-01 Serf collects debris. 00654_ R-06 Scavenger collects Tractor Beam. 00657_ K-01 Serf collects debris. 00657_ R-06 Scavenger collects Wheel. 00658_ Lgt. Ion Engine destroyed. 00660_ as-11555 sneak attacks. 00660_ K-01 Serf destroyed. Map ----- +----------------------------------------------------+ | ???????????????????????????????????# ## #### | | ??????????????????????????????????## ### #??# | | ?????????????????????????????????## ### #??# | | ????????????????????????????????## ## #??# | | ????????????????????????????????# ##?#### | | ????????????????????????????????# #????? | | ????????????????????????????????## ##????? | | ?????????????????????????????????######## ##?????? | | ????????????????????????????????????????# #??????? | | ????????????????????????????????????????# #??????? | | ?????????????????????????????####???????# #??????? | | ????????????????????????????# #??###### #??????? | | ????????????????????????#### ???# #??????? | | ???????????????????????## ????# ######??????? | | ???????????????????????# ?????# #???????????? | | ???????????????????????# ??????# #???????????? | | ????????????#??????????? ???????# #???????????? | | ??????????### ???####???# #???????# #???????????? | | ??????????# ### ##??# #???????# #???????????? | | ??????????# #### ######### #???????????? | | ??????????# ### #???????????? | | ????????????# * ###########???????????? | | ?????????????# % k r %#?????????????????????? | | ?????????????##########% ! #?????????????????????? | | ?????????????????###?## #?????###?????????????? | | ????????????????## ## % @ ###### ##????????????? | | ????????????????# ## # ##???????????? | | ????????????????## a ###?????????? | | ?????????????????## #?????????? | | ??????????????????# #?????????? | | ??????????????????## % #?????????? | | ???????##??????????## a ##?????????? | | ???????? ???####???## # #?????????? | | ????????? ### ####?####=!a # #?????????? | | ?????????? ##? #=%= a ### # #?????????? | | ???????????? ### =!!a ###???#??#?????????? | | ?????????????# ! ### #= a ##### ##?????????? | | ??????####????#%= # #% a|%==! #?????????? | | ?????## ##??## ####|[####### #?????????? | | ?????# #### ! #???????? #????????? | | ?????# % #?????????? ??????? | | ?????## #########???????????? ???? | | ??????#### ###?????????????????????? ###??? | | ?????????## ##??????????????????????????????? | | ??????????### ####???????????????????????????????? | | ????????????# #??????????????????????????????????? | | ????????????# #??????????????????????????????????? | | ????????????# #???####### ????????????????????? | | ????????????# ### ????????????????????? | | ????????##### ????????????????????? | +----------------------------------------------------+ Best States ------------- Heat Dissipation 25 Energy Generation 10 Energy Capacity 125 Matter Stores 300 Matter Capacity 300 Sight Range 16 Terrain Scan Density 10 Evasion (%) 55 Targeting Accuracy 5 Item Schematics ----------------- None Robot Schematics ------------------ None Fabricated ------------ Nothing Alien Tech Used ----------------- None Achievements -------------- None Challenges ------------ None Game ------ Seed ArmageddonSwordImmobilizer Manual? 0 Play Time 00:08:00 Cumulative 453.7 hours Start 2023.07.14 @ 17:43:12 End 2023.07.14 @ 17:48:40 Sessions 1 Manual Loads 0 Difficulty Rogue Special Mode None Game No. 352 Rogue 133 Adventurer 76 Explorer 143 Win Type - Total 22 Types 19/0/2/0/0/0/0/1/0 Lore% 67 Gallery% 87 Achievement% 71 Wizard Run 0 Options --------- ASCII 0 Keyboard 1 Movement Numpad Keybinds 0 Fullscreen 2 Font 18/X11Bold Map View 76x50 Tactical HUD 1 Map Filters NONE Filters NONE Steam 1 RUN: 89423ae0-58fc-4916-9766-8edead3e1a74